[Event "Titled Tuesday Blitz December 27 Late 2022"]
[White "Weisz, Bryan"]
[Black "Bambino Filho, Antonio Carlos"]
[WhiteFideId "30934133"]
[BlackFideId "2113163"]
[WhiteElo "1973"]
[BlackElo "2144"]
[Result "0-1"]
[Round "07"]
[TimeControl "180+2"]
[Date "2022.12.27"]
[WhiteClock "0:00:06"]
[BlackClock "0:00:10"]

1. e4 {[%clk 0:02:59]}  c5 {[%clk 0:02:57]} 2. Nf3 {[%clk 0:02:54]}  Nc6 {[%clk 0:02:58]} 3. d4 {[%clk 0:02:47]}  cxd4 {[%clk 0:02:58]} 4. Nxd4 {[%clk 0:02:48]}  e6 {[%clk 0:02:58]} 5. Nb5 {[%clk 0:02:47]}  d6 {[%clk 0:02:52]} 6. c4 {[%clk 0:02:46]}  Nf6 {[%clk 0:02:49]} 7. N5c3 {[%clk 0:02:45]}  Be7 {[%clk 0:02:47]} 8. Be2 {[%clk 0:02:42]}  O-O {[%clk 0:02:48]} 9. O-O {[%clk 0:02:42]}  a6 {[%clk 0:02:48]} 10. Be3 {[%clk 0:02:40]}  Qc7 {[%clk 0:02:47]} 11. Na3 {[%clk 0:02:39]}  b6 {[%clk 0:02:46]} 12. Rc1 {[%clk 0:02:38]}  Qb7 {[%clk 0:02:29]} 13. Na4 {[%clk 0:02:35]}  Nd7 {[%clk 0:02:28]} 14. Qb3 {[%clk 0:02:25]}  Na5 {[%clk 0:02:22]} 15. Qb4 {[%clk 0:02:18]}  Nc6 {[%clk 0:02:17]} 16. Qd2 {[%clk 0:02:12]}  Nc5 {[%clk 0:02:15]} 17. Nxc5 {[%clk 0:02:08]}  bxc5 {[%clk 0:02:09]} 18. b3 {[%clk 0:01:55]}  e5 {[%clk 0:02:02]} 19. Nb1 {[%clk 0:01:53]}  Nd4 {[%clk 0:01:59]} 20. Nc3 {[%clk 0:01:51]}  Be6 {[%clk 0:01:59]} 21. Bxd4 {[%clk 0:01:48]}  cxd4 {[%clk 0:01:49]} 22. Nd5 {[%clk 0:01:48]}  Bd8 {[%clk 0:01:50]} 23. f4 {[%clk 0:01:43]}  h6 {[%clk 0:01:49]} 24. Bf3 {[%clk 0:01:23]}  a5 {[%clk 0:01:30]} 25. c5 {[%clk 0:01:18]}  dxc5 {[%clk 0:01:24]} 26. Rxc5 {[%clk 0:01:15]}  exf4 {[%clk 0:01:16]} 27. Qxf4 {[%clk 0:00:56]}  Bg5 {[%clk 0:01:02]} 28. Qe5 {[%clk 0:00:51]}  Rac8 {[%clk 0:00:58]} 29. Qxd4 {[%clk 0:00:45]}  Qa7 {[%clk 0:00:34]} 30. Rc4 {[%clk 0:00:31]}  Qxd4+ {[%clk 0:00:27]} 31. Rxd4 {[%clk 0:00:31]}  Rc2 {[%clk 0:00:26]} 32. a4 {[%clk 0:00:15]}  Rb8 {[%clk 0:00:22]} 33. Rd3 {[%clk 0:00:11]}  Rb2 {[%clk 0:00:17]} 34. Bd1 {[%clk 0:00:10]}  Kh8 {[%clk 0:00:07]} 35. g3 {[%clk 0:00:11]}  Bd8 {[%clk 0:00:07]} 36. Rf2 {[%clk 0:00:06]}  Rb1 {[%clk 0:00:07]} 37. Kg2 {[%clk 0:00:05]}  Bb6 {[%clk 0:00:06]} 38. Bc2 {[%clk 0:00:04]}  Rb2 {[%clk 0:00:04]} 39. Nxb6 {[%clk 0:00:05]}  Rxb6 {[%clk 0:00:04]} 40. Bd1 {[%clk 0:00:04]}  Rb1 {[%clk 0:00:04]} 41. Bc2 {[%clk 0:00:05]}  Rb2 {[%clk 0:00:04]} 42. Bd1 {[%clk 0:00:05]}  Rb1 {[%clk 0:00:05]} 43. Bf3 {[%clk 0:00:06]}  Rc1 {[%clk 0:00:05]} 44. Rfd2 {[%clk 0:00:06]}  Rb1 {[%clk 0:00:06]} 45. e5 {[%clk 0:00:07]}  Kh7 {[%clk 0:00:06]} 46. Be4+ {[%clk 0:00:07]}  g6 {[%clk 0:00:07]} 47. Rd8 {[%clk 0:00:07]}  R1xb3 {[%clk 0:00:08]} 48. R8d6 {[%clk 0:00:07]}  Rb2 {[%clk 0:00:08]} 49. Rxb6 {[%clk 0:00:06]}  Rxd2+ {[%clk 0:00:08]} 50. Kf3 {[%clk 0:00:06]}  Rd4 {[%clk 0:00:09]} 51. Bc2 {[%clk 0:00:05]}  Rc4 {[%clk 0:00:08]} 52. Bb3 {[%clk 0:00:05]}  Rc3+ {[%clk 0:00:09]} 53. Ke4 {[%clk 0:00:05]}  Rxb3 {[%clk 0:00:09]} 54. Ra6 {[%clk 0:00:06]}  Rb4+ {[%clk 0:00:10]} 55. Ke3 {[%clk 0:00:06]}  Rxa4 {[%clk 0:00:10]} 0-1


[Site "https://www.chess.com"]

[Event "Titled Tuesday Blitz December 27 Late 2022"]
[White "reevecanada"]
[Black "Silva, Miguel Antonio Neto"]
[BlackFideId "1911929"]
[WhiteElo "2430"]
[BlackElo "2204"]
[Result "1-0"]
[Round "07"]
[TimeControl "180+2"]
[Date "2022.12.27"]
[WhiteClock "0:00:10"]
[BlackClock "0:00:51"]

1. e4 {[%clk 0:03:00]}  c5 {[%clk 0:02:59]} 2. Nf3 {[%clk 0:02:59]}  d6 {[%clk 0:02:59]} 3. d4 {[%clk 0:03:00]}  cxd4 {[%clk 0:02:59]} 4. Nxd4 {[%clk 0:03:01]}  Nf6 {[%clk 0:02:58]} 5. Nc3 {[%clk 0:03:01]}  a6 {[%clk 0:02:59]} 6. f3 {[%clk 0:02:59]}  e5 {[%clk 0:02:57]} 7. Nde2 {[%clk 0:02:59]}  Be6 {[%clk 0:02:56]} 8. Bg5 {[%clk 0:02:56]}  Be7 {[%clk 0:02:56]} 9. Qd2 {[%clk 0:02:54]}  Nbd7 {[%clk 0:02:56]} 10. O-O-O {[%clk 0:02:53]}  Rc8 {[%clk 0:02:56]} 11. Kb1 {[%clk 0:02:52]}  Qc7 {[%clk 0:02:55]} 12. Nc1 {[%clk 0:02:51]}  b5 {[%clk 0:02:55]} 13. Nb3 {[%clk 0:02:42]}  h6 {[%clk 0:02:51]} 14. Be3 {[%clk 0:02:28]}  h5 {[%clk 0:02:46]} 15. Be2 {[%clk 0:02:18]}  Nb6 {[%clk 0:02:44]} 16. Bxb5+ {[%clk 0:02:10]}  axb5 {[%clk 0:02:42]} 17. Nxb5 {[%clk 0:02:09]}  Qb8 {[%clk 0:02:42]} 18. Bxb6 {[%clk 0:01:59]}  Qxb6 {[%clk 0:02:41]} 19. Nxd6+ {[%clk 0:01:59]}  Bxd6 {[%clk 0:02:39]} 20. Qxd6 {[%clk 0:01:59]}  Qxd6 {[%clk 0:02:38]} 21. Rxd6 {[%clk 0:02:00]}  Ke7 {[%clk 0:02:38]} 22. Rhd1 {[%clk 0:01:59]}  Bxb3 {[%clk 0:02:29]} 23. axb3 {[%clk 0:01:59]}  Rhd8 {[%clk 0:02:29]} 24. R6d2 {[%clk 0:01:50]}  Rxd2 {[%clk 0:02:28]} 25. Rxd2 {[%clk 0:01:51]}  Rd8 {[%clk 0:02:27]} 26. Re2 {[%clk 0:01:51]}  h4 {[%clk 0:02:27]} 27. b4 {[%clk 0:01:49]}  Nh5 {[%clk 0:02:27]} 28. Rf2 {[%clk 0:01:42]}  Nf4 {[%clk 0:02:19]} 29. g3 {[%clk 0:01:35]}  hxg3 {[%clk 0:02:17]} 30. hxg3 {[%clk 0:01:36]}  Nh5 {[%clk 0:02:17]} 31. Rg2 {[%clk 0:01:20]}  Rd1+ {[%clk 0:02:15]} 32. Ka2 {[%clk 0:01:20]}  Rf1 {[%clk 0:02:16]} 33. b5 {[%clk 0:01:14]}  Kd6 {[%clk 0:02:15]} 34. Rd2+ {[%clk 0:01:10]}  Kc7 {[%clk 0:02:13]} 35. Rd5 {[%clk 0:01:08]}  f6 {[%clk 0:02:07]} 36. f4 {[%clk 0:01:00]}  Nxg3 {[%clk 0:02:03]} 37. fxe5 {[%clk 0:00:58]}  Nxe4 {[%clk 0:02:03]} 38. e6 {[%clk 0:00:55]}  Nd6 {[%clk 0:02:03]} 39. c4 {[%clk 0:00:32]}  Re1 {[%clk 0:02:01]} 40. Rc5+ {[%clk 0:00:26]}  Kb7 {[%clk 0:01:59]} 41. Rc6 {[%clk 0:00:26]}  Re3 {[%clk 0:01:50]} 42. Rxd6 {[%clk 0:00:24]}  g5 {[%clk 0:01:48]} 43. c5 {[%clk 0:00:23]}  Re5 {[%clk 0:01:47]} 44. b4 {[%clk 0:00:21]}  g4 {[%clk 0:01:46]} 45. Kb3 {[%clk 0:00:19]}  g3 {[%clk 0:01:46]} 46. Rd7+ {[%clk 0:00:17]}  Kc8 {[%clk 0:01:44]} 47. Rg7 {[%clk 0:00:18]}  Rg5 {[%clk 0:01:44]} 48. Rxg5 {[%clk 0:00:14]}  fxg5 {[%clk 0:01:43]} 49. e7 {[%clk 0:00:14]}  Kd7 {[%clk 0:01:42]} 50. b6 {[%clk 0:00:15]}  g2 {[%clk 0:01:42]} 51. b7 {[%clk 0:00:15]}  g1=Q {[%clk 0:01:42]} 52. e8=Q+ {[%clk 0:00:15]}  Kxe8 {[%clk 0:01:41]} 53. b8=Q+ {[%clk 0:00:16]}  Kf7 {[%clk 0:01:41]} 54. Kc4 {[%clk 0:00:16]}  Qf1+ {[%clk 0:01:41]} 55. Kd5 {[%clk 0:00:16]}  Qf3+ {[%clk 0:01:40]} 56. Kc4 {[%clk 0:00:15]}  Qe4+ {[%clk 0:01:39]} 57. Kb5 {[%clk 0:00:15]}  g4 {[%clk 0:01:38]} 58. Qd6 {[%clk 0:00:14]}  Qe2+ {[%clk 0:01:35]} 59. Kb6 {[%clk 0:00:14]}  Qc4 {[%clk 0:01:33]} 60. b5 {[%clk 0:00:14]}  Qb3 {[%clk 0:01:26]} 61. c6 {[%clk 0:00:14]}  g3 {[%clk 0:01:26]} 62. c7 {[%clk 0:00:13]}  Qe3+ {[%clk 0:01:23]} 63. Kb7 {[%clk 0:00:13]}  g2 {[%clk 0:01:22]} 64. c8=Q {[%clk 0:00:13]}  Qe4+ {[%clk 0:01:21]} 65. Qcc6 {[%clk 0:00:12]}  Qxc6+ {[%clk 0:01:18]} 66. Qxc6 {[%clk 0:00:13]}  g1=Q {[%clk 0:01:17]} 67. b6 {[%clk 0:00:14]}  Qa1 {[%clk 0:01:15]} 68. Kb8 {[%clk 0:00:13]}  Ke7 {[%clk 0:01:12]} 69. b7 {[%clk 0:00:13]}  Qh8+ {[%clk 0:01:05]} 70. Qc8 {[%clk 0:00:12]}  Qa1 {[%clk 0:00:59]} 71. Qc7+ {[%clk 0:00:13]}  Ke8 {[%clk 0:00:59]} 72. Kc8 {[%clk 0:00:12]}  Qd4 {[%clk 0:00:51]} 73. b8=Q {[%clk 0:00:10]}  Qg4+ {[%clk 0:00:51]} 74. Kb7+ {[%clk 0:00:10]} 1-0


[Site "https://www.chess.com"]

[Event "Titled Tuesday Blitz December 27 Late 2022"]
[White "Andreev, Eduard"]
[Black "Rego, Pedro Filipe"]
[WhiteFideId "14103400"]
[BlackFideId "1904310"]
[WhiteElo "2413"]
[BlackElo "2312"]
[Result "0-1"]
[Round "08"]
[TimeControl "180+2"]
[Date "2022.12.27"]
[WhiteClock "0:00:01"]
[BlackClock "0:00:07"]

1. Nf3 {[%clk 0:03:00]}  Nf6 {[%clk 0:02:58]} 2. g3 {[%clk 0:03:00]}  e6 {[%clk 0:02:58]} 3. Bg2 {[%clk 0:03:00]}  d5 {[%clk 0:02:59]} 4. d4 {[%clk 0:03:00]}  c5 {[%clk 0:02:58]} 5. O-O {[%clk 0:02:57]}  cxd4 {[%clk 0:02:58]} 6. Nxd4 {[%clk 0:02:58]}  h6 {[%clk 0:02:57]} 7. c4 {[%clk 0:02:57]}  Nc6 {[%clk 0:02:52]} 8. cxd5 {[%clk 0:02:55]}  Nxd5 {[%clk 0:02:51]} 9. Nxc6 {[%clk 0:02:47]}  bxc6 {[%clk 0:02:52]} 10. Qa4 {[%clk 0:02:46]}  Bd7 {[%clk 0:02:49]} 11. Rd1 {[%clk 0:02:45]}  Qc7 {[%clk 0:02:34]} 12. e4 {[%clk 0:02:39]}  Nb6 {[%clk 0:02:32]} 13. Qc2 {[%clk 0:02:39]}  Be7 {[%clk 0:02:27]} 14. Be3 {[%clk 0:02:29]}  c5 {[%clk 0:02:18]} 15. a4 {[%clk 0:02:25]}  O-O {[%clk 0:02:01]} 16. a5 {[%clk 0:02:21]}  Nc8 {[%clk 0:02:00]} 17. Nd2 {[%clk 0:02:05]}  Bc6 {[%clk 0:01:47]} 18. Nc4 {[%clk 0:02:01]}  Rb8 {[%clk 0:01:42]} 19. Bf4 {[%clk 0:01:59]}  Qb7 {[%clk 0:01:35]} 20. Bxb8 {[%clk 0:01:57]}  Qxb8 {[%clk 0:01:36]} 21. f4 {[%clk 0:01:38]}  Nd6 {[%clk 0:01:11]} 22. Ne5 {[%clk 0:01:32]}  Bb5 {[%clk 0:00:58]} 23. Qxc5 {[%clk 0:01:07]}  Rc8 {[%clk 0:00:47]} 24. Qf2 {[%clk 0:01:02]}  Nc4 {[%clk 0:00:47]} 25. Nxc4 {[%clk 0:00:50]}  Rxc4 {[%clk 0:00:48]} 26. Kh1 {[%clk 0:00:48]}  Bc5 {[%clk 0:00:40]} 27. Qd2 {[%clk 0:00:46]}  Rb4 {[%clk 0:00:38]} 28. Rac1 {[%clk 0:00:38]}  Bf8 {[%clk 0:00:30]} 29. Qd8 {[%clk 0:00:35]}  Be2 {[%clk 0:00:28]} 30. Qxb8 {[%clk 0:00:11]}  Rxb8 {[%clk 0:00:29]} 31. Rd2 {[%clk 0:00:11]}  Bb5 {[%clk 0:00:25]} 32. Rc7 {[%clk 0:00:10]}  a6 {[%clk 0:00:25]} 33. Rdc2 {[%clk 0:00:10]}  Kh7 {[%clk 0:00:22]} 34. Rc8 {[%clk 0:00:09]}  Rxc8 {[%clk 0:00:23]} 35. Rxc8 {[%clk 0:00:10]}  Bb4 {[%clk 0:00:23]} 36. e5 {[%clk 0:00:09]}  g6 {[%clk 0:00:22]} 37. Bb7 {[%clk 0:00:09]}  Bxa5 {[%clk 0:00:21]} 38. Ra8 {[%clk 0:00:09]}  Bd2 {[%clk 0:00:19]} 39. Kg2 {[%clk 0:00:08]}  Bc1 {[%clk 0:00:18]} 40. b3 {[%clk 0:00:08]}  Bd3 {[%clk 0:00:17]} 41. Kf3 {[%clk 0:00:07]}  Bc2 {[%clk 0:00:16]} 42. Rxa6 {[%clk 0:00:03]}  Bd1+ {[%clk 0:00:15]} 43. Kg2 {[%clk 0:00:03]}  Bxb3 {[%clk 0:00:15]} 44. Be4 {[%clk 0:00:03]}  Kg7 {[%clk 0:00:15]} 45. Ra7 {[%clk 0:00:03]}  Bd2 {[%clk 0:00:13]} 46. Bc6 {[%clk 0:00:02]}  Be3 {[%clk 0:00:08]} 47. Rb7 {[%clk 0:00:02]}  Bc4 {[%clk 0:00:07]} 48. Kh3 {[%clk 0:00:02]}  Bf1+ {[%clk 0:00:06]} 49. Kg4 {[%clk 0:00:01]}  Be2+ {[%clk 0:00:07]} 0-1


[Site "https://www.chess.com"]

[Event "Titled Tuesday Blitz December 27 Late 2022"]
[White "Araujo Sanchez, Josue"]
[Black "Kravtsiv, Martyn"]
[WhiteFideId "6416896"]
[BlackFideId "14113147"]
[WhiteElo "2303"]
[BlackElo "2598"]
[Result "0-1"]
[Round "08"]
[TimeControl "180+2"]
[Date "2022.12.27"]
[WhiteClock "0:00:16"]
[BlackClock "0:00:38"]

1. e4 {[%clk 0:03:00]}  e5 {[%clk 0:02:59]} 2. Nf3 {[%clk 0:03:00]}  Nc6 {[%clk 0:02:58]} 3. Bb5 {[%clk 0:03:01]}  a6 {[%clk 0:02:58]} 4. Ba4 {[%clk 0:03:01]}  Nf6 {[%clk 0:02:58]} 5. d3 {[%clk 0:03:01]}  b5 {[%clk 0:02:57]} 6. Bb3 {[%clk 0:03:01]}  Be7 {[%clk 0:02:57]} 7. O-O {[%clk 0:03:01]}  O-O {[%clk 0:02:57]} 8. c3 {[%clk 0:03:02]}  d5 {[%clk 0:02:54]} 9. exd5 {[%clk 0:02:59]}  Nxd5 {[%clk 0:02:55]} 10. Re1 {[%clk 0:02:59]}  Bf6 {[%clk 0:02:48]} 11. Na3 {[%clk 0:02:34]}  b4 {[%clk 0:02:31]} 12. Nb1 {[%clk 0:01:58]}  Bf5 {[%clk 0:02:28]} 13. Bc2 {[%clk 0:01:44]}  Bg6 {[%clk 0:02:10]} 14. c4 {[%clk 0:01:39]}  Nf4 {[%clk 0:02:09]} 15. Bxf4 {[%clk 0:01:35]}  exf4 {[%clk 0:02:10]} 16. Qc1 {[%clk 0:01:31]}  Nd4 {[%clk 0:02:08]} 17. Nbd2 {[%clk 0:01:28]}  Nxc2 {[%clk 0:02:04]} 18. Qxc2 {[%clk 0:01:29]}  Bxd3 {[%clk 0:02:03]} 19. Qb3 {[%clk 0:01:27]}  a5 {[%clk 0:01:58]} 20. Rad1 {[%clk 0:01:28]}  a4 {[%clk 0:01:31]} 21. Qxb4 {[%clk 0:01:26]}  Qb8 {[%clk 0:01:26]} 22. Qa3 {[%clk 0:01:06]}  Bc2 {[%clk 0:01:24]} 23. Ne4 {[%clk 0:01:00]}  Bxb2 {[%clk 0:01:23]} 24. Qc5 {[%clk 0:00:59]}  Bxd1 {[%clk 0:01:21]} 25. Rxd1 {[%clk 0:00:59]}  Rd8 {[%clk 0:01:16]} 26. Rb1 {[%clk 0:00:57]}  a3 {[%clk 0:01:12]} 27. Qf5 {[%clk 0:00:57]}  Qc8 {[%clk 0:01:05]} 28. Qxf4 {[%clk 0:00:56]}  h6 {[%clk 0:01:06]} 29. h4 {[%clk 0:00:54]}  Qe6 {[%clk 0:01:06]} 30. Ng3 {[%clk 0:00:51]}  Re8 {[%clk 0:00:52]} 31. Nf5 {[%clk 0:00:32]}  Qe4 {[%clk 0:00:50]} 32. Qxe4 {[%clk 0:00:26]}  Rxe4 {[%clk 0:00:51]} 33. Ne3 {[%clk 0:00:27]}  Rd8 {[%clk 0:00:48]} 34. Kf1 {[%clk 0:00:26]}  f5 {[%clk 0:00:43]} 35. g3 {[%clk 0:00:22]}  f4 {[%clk 0:00:42]} 36. gxf4 {[%clk 0:00:15]}  Rxf4 {[%clk 0:00:43]} 37. Ke2 {[%clk 0:00:15]}  Rdf8 {[%clk 0:00:43]} 38. Nd2 {[%clk 0:00:16]}  Rxf2+ {[%clk 0:00:42]} 39. Kd3 {[%clk 0:00:15]}  Rd8+ {[%clk 0:00:40]} 40. Nd5 {[%clk 0:00:16]}  Rxd2+ {[%clk 0:00:37]} 41. Kxd2 {[%clk 0:00:16]}  c6 {[%clk 0:00:38]} 0-1


[Site "https://www.chess.com"]

[Event "Titled Tuesday Blitz December 27 Late 2022"]
[White "Ardila, Oscar Humberto"]
[Black "Dias, Joao Batista"]
[WhiteFideId "4404742"]
[BlackFideId "2108240"]
[WhiteElo "1982"]
[BlackElo "1796"]
[Result "1/2-1/2"]
[Round "08"]
[TimeControl "180+2"]
[Date "2022.12.27"]
[WhiteClock "0:01:29"]
[BlackClock "0:00:32"]

1. d4 {[%clk 0:03:00]}  d5 {[%clk 0:02:59]} 2. c4 {[%clk 0:03:00]}  c6 {[%clk 0:02:59]} 3. Nc3 {[%clk 0:03:00]}  Nf6 {[%clk 0:02:59]} 4. Nf3 {[%clk 0:03:00]}  g6 {[%clk 0:02:58]} 5. cxd5 {[%clk 0:03:00]}  cxd5 {[%clk 0:02:58]} 6. Bf4 {[%clk 0:03:00]}  a6 {[%clk 0:02:56]} 7. e3 {[%clk 0:03:00]}  Bg7 {[%clk 0:02:56]} 8. Be2 {[%clk 0:03:00]}  O-O {[%clk 0:02:56]} 9. O-O {[%clk 0:03:00]}  Nc6 {[%clk 0:02:53]} 10. Na4 {[%clk 0:02:59]}  Nh5 {[%clk 0:02:47]} 11. Bg5 {[%clk 0:02:58]}  h6 {[%clk 0:02:46]} 12. Bh4 {[%clk 0:02:58]}  g5 {[%clk 0:02:47]} 13. Bg3 {[%clk 0:02:58]}  Nxg3 {[%clk 0:02:46]} 14. hxg3 {[%clk 0:02:58]}  Bg4 {[%clk 0:02:42]} 15. Rc1 {[%clk 0:02:56]}  Rc8 {[%clk 0:02:40]} 16. Nc5 {[%clk 0:02:56]}  Qa5 {[%clk 0:02:29]} 17. a3 {[%clk 0:02:53]}  b5 {[%clk 0:02:24]} 18. Qb3 {[%clk 0:02:47]}  Rfd8 {[%clk 0:02:15]} 19. Nb7 {[%clk 0:02:47]}  Qb6 {[%clk 0:02:13]} 20. Nxd8 {[%clk 0:02:47]}  Rxd8 {[%clk 0:02:13]} 21. Rc5 {[%clk 0:02:45]}  e6 {[%clk 0:02:09]} 22. Rfc1 {[%clk 0:02:44]}  Na5 {[%clk 0:02:09]} 23. Qb4 {[%clk 0:02:42]}  Bf8 {[%clk 0:02:06]} 24. Bf1 {[%clk 0:02:31]}  Bxf3 {[%clk 0:02:04]} 25. gxf3 {[%clk 0:02:31]}  Nc4 {[%clk 0:02:02]} 26. Bxc4 {[%clk 0:02:30]}  dxc4 {[%clk 0:02:02]} 27. f4 {[%clk 0:02:24]}  Rd5 {[%clk 0:01:58]} 28. fxg5 {[%clk 0:02:16]}  hxg5 {[%clk 0:01:58]} 29. Rxd5 {[%clk 0:02:05]}  Bxb4 {[%clk 0:01:56]} 30. Rxg5+ {[%clk 0:02:05]}  Kf8 {[%clk 0:01:54]} 31. axb4 {[%clk 0:02:05]}  Ke7 {[%clk 0:01:43]} 32. Ra1 {[%clk 0:02:05]}  Kf6 {[%clk 0:01:41]} 33. Rc5 {[%clk 0:02:03]}  Qd6 {[%clk 0:01:36]} 34. Kg2 {[%clk 0:02:02]}  Kg6 {[%clk 0:01:32]} 35. f4 {[%clk 0:02:01]}  f6 {[%clk 0:01:32]} 36. Kf3 {[%clk 0:02:00]}  Qb6 {[%clk 0:01:24]} 37. Rh1 {[%clk 0:01:57]}  Qb7+ {[%clk 0:01:23]} 38. e4 {[%clk 0:01:57]}  f5 {[%clk 0:01:22]} 39. Re1 {[%clk 0:01:53]}  Kf6 {[%clk 0:01:14]} 40. g4 {[%clk 0:01:47]}  fxg4+ {[%clk 0:01:12]} 41. Kxg4 {[%clk 0:01:47]}  Qg7+ {[%clk 0:01:11]} 42. Kf3 {[%clk 0:01:46]}  Qh6 {[%clk 0:01:02]} 43. Rg5 {[%clk 0:01:43]}  Qh3+ {[%clk 0:01:00]} 44. Rg3 {[%clk 0:01:43]}  Qh5+ {[%clk 0:00:59]} 45. Ke3 {[%clk 0:01:42]}  Qh2 {[%clk 0:00:59]} 46. Reg1 {[%clk 0:01:34]}  Qxb2 {[%clk 0:00:57]} 47. Rg6+ {[%clk 0:01:33]}  Ke7 {[%clk 0:00:57]} 48. Rg7+ {[%clk 0:01:32]}  Kd6 {[%clk 0:00:56]} 49. e5+ {[%clk 0:01:31]}  Kc6 {[%clk 0:00:55]} 50. R1g6 {[%clk 0:01:31]}  Qc3+ {[%clk 0:00:51]} 51. Ke2 {[%clk 0:01:31]}  Qd3+ {[%clk 0:00:48]} 52. Ke1 {[%clk 0:01:31]}  Qe3+ {[%clk 0:00:46]} 53. Kf1 {[%clk 0:01:32]}  Qxf4+ {[%clk 0:00:46]} 54. Ke1 {[%clk 0:01:32]}  Qe3+ {[%clk 0:00:46]} 55. Kf1 {[%clk 0:01:32]}  Qf4+ {[%clk 0:00:45]} 56. Ke1 {[%clk 0:01:32]}  Qe3+ {[%clk 0:00:44]} 57. Kf1 {[%clk 0:01:33]}  Qc1+ {[%clk 0:00:37]} 58. Kg2 {[%clk 0:01:32]}  Qd2+ {[%clk 0:00:34]} 59. Kh3 {[%clk 0:01:31]}  Qe3+ {[%clk 0:00:34]} 60. Kg2 {[%clk 0:01:30]}  Qe2+ {[%clk 0:00:33]} 61. Kg1 {[%clk 0:01:29]}  Qe3+ {[%clk 0:00:32]} 62. Kf1 {[%clk 0:01:29]} 1/2-1/2


[Site "https://www.chess.com"]

[Event "Titled Tuesday Blitz December 27 Late 2022"]
[White "Averjanov, Alexey"]
[Black "Zakhartsov, Vladimir"]
[WhiteFideId "14109867"]
[BlackFideId "4145097"]
[WhiteElo "2399"]
[BlackElo "2552"]
[Result "1-0"]
[Round "08"]
[TimeControl "180+2"]
[Date "2022.12.27"]
[WhiteClock "0:00:28"]
[BlackClock "0:00:10"]

1. d4 {[%clk 0:03:00]}  g6 {[%clk 0:02:59]} 2. c4 {[%clk 0:03:00]}  Bg7 {[%clk 0:02:59]} 3. Nf3 {[%clk 0:03:01]}  d6 {[%clk 0:03:00]} 4. g3 {[%clk 0:03:00]}  e5 {[%clk 0:02:58]} 5. Bg2 {[%clk 0:03:00]}  exd4 {[%clk 0:02:35]} 6. Nxd4 {[%clk 0:03:00]}  Ne7 {[%clk 0:02:36]} 7. Nc3 {[%clk 0:03:00]}  Nbc6 {[%clk 0:02:34]} 8. Nxc6 {[%clk 0:02:59]}  Nxc6 {[%clk 0:02:35]} 9. O-O {[%clk 0:02:59]}  O-O {[%clk 0:02:35]} 10. Qd2 {[%clk 0:02:58]}  Be6 {[%clk 0:02:34]} 11. b3 {[%clk 0:02:57]}  Qd7 {[%clk 0:02:32]} 12. Bb2 {[%clk 0:02:57]}  f5 {[%clk 0:02:21]} 13. Nd5 {[%clk 0:02:55]}  Rae8 {[%clk 0:02:19]} 14. Rac1 {[%clk 0:02:52]}  b6 {[%clk 0:01:56]} 15. Nf4 {[%clk 0:02:42]}  Bf7 {[%clk 0:01:50]} 16. Bxg7 {[%clk 0:02:41]}  Kxg7 {[%clk 0:01:50]} 17. Qc3+ {[%clk 0:02:38]}  Ne5 {[%clk 0:01:37]} 18. Nd5 {[%clk 0:02:29]}  c6 {[%clk 0:01:30]} 19. Nb4 {[%clk 0:02:24]}  Kg8 {[%clk 0:01:23]} 20. f4 {[%clk 0:02:19]}  a5 {[%clk 0:01:23]} 21. fxe5 {[%clk 0:02:13]}  axb4 {[%clk 0:01:23]} 22. Qxb4 {[%clk 0:02:11]}  dxe5 {[%clk 0:01:16]} 23. Qxb6 {[%clk 0:02:11]}  e4 {[%clk 0:01:17]} 24. Rcd1 {[%clk 0:02:09]}  Qe6 {[%clk 0:01:13]} 25. e3 {[%clk 0:02:00]}  Rc8 {[%clk 0:01:04]} 26. Qc5 {[%clk 0:02:00]}  Rfd8 {[%clk 0:01:00]} 27. Rd4 {[%clk 0:01:56]}  Rxd4 {[%clk 0:00:59]} 28. Qxd4 {[%clk 0:01:57]}  c5 {[%clk 0:00:59]} 29. Qd2 {[%clk 0:01:54]}  Qf6 {[%clk 0:00:58]} 30. Rd1 {[%clk 0:01:53]}  Kg7 {[%clk 0:00:56]} 31. Qd6 {[%clk 0:01:46]}  Qc3 {[%clk 0:00:55]} 32. Kf2 {[%clk 0:01:41]}  Ra8 {[%clk 0:00:52]} 33. Rd2 {[%clk 0:01:38]}  Ra6 {[%clk 0:00:48]} 34. Qd8 {[%clk 0:01:18]}  Ra8 {[%clk 0:00:39]} 35. Qd6 {[%clk 0:01:18]}  Ra6 {[%clk 0:00:37]} 36. Qd7 {[%clk 0:01:15]}  Ra7 {[%clk 0:00:32]} 37. Qd8 {[%clk 0:01:08]}  Qa1 {[%clk 0:00:27]} 38. Bf1 {[%clk 0:01:02]}  Rxa2 {[%clk 0:00:25]} 39. Be2 {[%clk 0:00:56]}  Rxd2 {[%clk 0:00:22]} 40. Qxd2 {[%clk 0:00:57]}  Qh1 {[%clk 0:00:21]} 41. Qd6 {[%clk 0:00:54]}  Qxh2+ {[%clk 0:00:20]} 42. Ke1 {[%clk 0:00:53]}  Qg1+ {[%clk 0:00:20]} 43. Kd2 {[%clk 0:00:52]}  Qb1 {[%clk 0:00:19]} 44. Qe5+ {[%clk 0:00:49]}  Kh6 {[%clk 0:00:16]} 45. Qxc5 {[%clk 0:00:49]}  Qb2+ {[%clk 0:00:13]} 46. Ke1 {[%clk 0:00:46]}  Kg7 {[%clk 0:00:09]} 47. Qd4+ {[%clk 0:00:43]}  Qxd4 {[%clk 0:00:09]} 48. exd4 {[%clk 0:00:44]}  g5 {[%clk 0:00:10]} 49. b4 {[%clk 0:00:41]}  f4 {[%clk 0:00:10]} 50. gxf4 {[%clk 0:00:37]}  gxf4 {[%clk 0:00:11]} 51. b5 {[%clk 0:00:34]}  f3 {[%clk 0:00:10]} 52. b6 {[%clk 0:00:28]} 1-0


[Site "https://www.chess.com"]

[Event "Titled Tuesday Blitz December 27 Late 2022"]
[White "Bambino Filho, Antonio Carlos"]
[Black "Sourath Biswas"]
[WhiteFideId "2113163"]
[BlackFideId "35091484"]
[WhiteElo "2144"]
[BlackElo "2281"]
[Result "0-1"]
[Round "08"]
[TimeControl "180+2"]
[Date "2022.12.27"]
[WhiteClock "0:00:50"]
[BlackClock "0:00:38"]

1. e4 {[%clk 0:03:00]}  c6 {[%clk 0:02:59]} 2. d4 {[%clk 0:02:55]}  d5 {[%clk 0:03:00]} 3. exd5 {[%clk 0:02:56]}  cxd5 {[%clk 0:03:00]} 4. c4 {[%clk 0:02:56]}  Nc6 {[%clk 0:03:01]} 5. Nf3 {[%clk 0:02:56]}  Nf6 {[%clk 0:03:01]} 6. Nc3 {[%clk 0:02:55]}  Bg4 {[%clk 0:03:02]} 7. cxd5 {[%clk 0:02:56]}  Nxd5 {[%clk 0:03:03]} 8. Qb3 {[%clk 0:02:54]}  Bxf3 {[%clk 0:02:47]} 9. Qxb7 {[%clk 0:02:44]}  Ndb4 {[%clk 0:01:44]} 10. Nb5 {[%clk 0:02:12]}  Nxd4 {[%clk 0:01:43]} 11. Nc7+ {[%clk 0:01:55]}  Qxc7 {[%clk 0:01:14]} 12. Qxc7 {[%clk 0:01:49]}  Ndc2+ {[%clk 0:01:14]} 13. Kd2 {[%clk 0:01:46]}  Rd8+ {[%clk 0:01:14]} 14. Qxd8+ {[%clk 0:01:34]}  Kxd8 {[%clk 0:01:14]} 15. gxf3 {[%clk 0:01:31]}  Nxa1 {[%clk 0:01:14]} 16. Bc4 {[%clk 0:01:26]}  e6 {[%clk 0:00:53]} 17. Kc3 {[%clk 0:01:23]}  Nc6 {[%clk 0:00:40]} 18. Bg5+ {[%clk 0:01:20]}  f6 {[%clk 0:00:40]} 19. Rd1+ {[%clk 0:01:17]}  Kc7 {[%clk 0:00:39]} 20. Be3 {[%clk 0:01:10]}  Bb4+ {[%clk 0:00:39]} 21. Kd3 {[%clk 0:01:03]}  Rd8+ {[%clk 0:00:39]} 22. Ke2 {[%clk 0:01:03]}  Nc2 {[%clk 0:00:40]} 23. Bxe6 {[%clk 0:00:50]}  N2d4+ {[%clk 0:00:38]} 0-1


[Site "https://www.chess.com"]